{"text_format":"2","workbook":"xlsx","n_sheets":2,"sheets":["Общая по фамилиям","Кол-ву билетов 2 серии "],"not_rendered":{"charts":0,"images":0,"macros":0,"external_links":0,"defined_names":1,"comments":0,"pivot_tables":0},"unopened":[],"bounds":{"document_bytes":16777216,"sheet_cells":100000,"run_cost":"one","rows_first":2000,"rows_last":500,"rows_between":2000,"halvings":0,"cell_chars":16384,"cell_head_chars":4096},"cells_cut":0,"cells_raw":0,"read":"whole","date_system":"1900"}

{"sheet":"Общая по фамилиям","index":0,"n_rows":895,"n_cols":6,"rows_kept":895,"cut":false,"hidden":false,"merged":[]}
["Name","АРС 15","АРС 16","АРС 17","АРС 18","Сумма билетов"]
["Abaluev Anton",null,null,null,5,{"$f":"E2+B2+C2+D2","v":5}]
["Abaluev Andrey",null,null,null,5,5]
["Abishev Roman",null,null,6,2,8]
["Abramenkov Sergey",4,0,null,10,14]
["Abramov Aleksandr",null,null,null,2,2]
["Abramov Roman",null,null,1,null,1]
["Abramovas Aleksandras",2,0,4,null,6]
["Adamovich Aleksey",2,2,2,1,7]
["Adamovich Denis",3,0,2,null,5]
["Adelberg Artur",14,0,7,6,27]
["Afanasyev Aleksey",0,11,null,null,11]
["Afanasyev Igor",null,null,null,11,11]
["Agabaev Arslan",8,0,null,6,14]
["Agaev Emil",null,null,null,1,1]
["Agafonov Aleksey",null,null,3,2,5]
["Agasarov Roman",0,4,4,3,11]
["Ageeva Anastasiya",null,null,null,3,3]
["Aglyamov Radik",0,7,null,null,7]
["Aistov Maksim",null,null,1,null,1]
["Akimov Dmitriy",0,5,null,null,5]
["Akulov Dmitriy",3,2,7,2,14]
["Albitskiy Sergey",23,7,16,null,46]
["Alborov Roman",null,null,1,null,1]
["Alekseev Igor",null,null,3,null,3]
["Alekseeva Anna",null,null,1,null,1]
["Aleynik Konstantin",null,null,1,null,1]
["Alieva Luana",4,1,null,null,5]
["Alikulov Artem",null,null,null,2,2]
["Altukhov Igor",0,3,null,null,3]
["Altynikov Roman",0,7,null,8,15]
["Alymov Daniil",null,null,1,null,1]
["Alzhanov Azamat",0,1,4,null,5]
["Ananova Anna",4,23,11,null,38]
["Andreev Dmitriy",0,9,null,null,9]
["Andreev Vadim",1,3,null,null,4]
["Andrianovskaya Anna",0,1,null,null,1]
["Anisimov Aleksey",10,0,null,null,10]
["Antipova Erika",0,1,null,null,1]
["Antokhin Aleksey",4,2,4,1,11]
["Antonov Ivan",null,null,4,null,4]
["Antropov Akim",0,3,6,6,15]
["Antufyev Andrey",0,1,1,null,2]
["Aratsev Daniil",0,13,null,null,13]
["Aristov Aleksey",0,1,null,null,1]
["Arkhipova Elizaveta",0,1,null,null,1]
["Arsenenko Denis",0,2,10,null,12]
["Arshin Mikhail",null,null,null,1,1]
["Ashimov Bauyrzhan",null,null,null,2,2]
["Artemenko Artem",null,null,3,null,3]
["Aseeva Vera",0,2,null,null,2]
["Ashimov Bauyrzhan",null,null,5,null,5]
["Ataksheev Danila",0,1,1,null,2]
["Avanesyan Valeriy",null,null,null,4,4]
["Avanesian Vazgen",8,0,null,null,8]
["Avanesyan Artem",5,0,null,null,5]
["Avdunin Kirill",0,12,null,null,12]
["Ayupov Artur",6,0,null,1,7]
["Azaryan Aleksandr",0,14,15,11,40]
["Azhmaganbetov Timur",0,7,null,7,14]
["Baaziz Mario",0,4,null,null,4]
["Babiy Diana",0,1,1,null,2]
["Babushkin Nikolay",0,21,6,null,27]
["Badrutdinov Ruslan",10,0,null,null,10]
["Bagritsevich Evgeniy",null,null,1,null,1]
["Bakhrov Konstantin",0,2,null,null,2]
["Bakhta Stanislav",9,0,null,null,9]
["Balobanov Konstantin",3,0,null,null,3]
["Barannikov Ilya",0,26,18,20,64]
["Bartysh Bogdan",0,14,null,null,14]
["Baryshnikov Roman",null,null,null,1,1]
["Bashkirov Danila",null,null,null,9,9]
["Baturevich Mikhail",null,null,null,2,2]
["Bayandina Yulia",0,12,null,2,14]
["Bayramov Azer",0,17,26,null,43]
["Bedareva Ksenia",2,0,null,null,2]
["Bedzhanyan Alla",1,0,null,null,1]
["Bedzhanyan Levon",22,0,15,1,38]
["Belikov Dmitriy",18,15,14,null,47]
["Belinskiy Artem",0,9,13,null,22]
["Beliy Aleksandr",0,7,null,null,7]
["Belousov Andrey",7,0,null,null,{"$f":"E82+B82+C82+D82","v":7}]
["Belozertsev Valeriy",3,0,2,null,5]
["Belyaev Artem",0,6,null,null,6]
["Belyaeva Rimma",5,6,5,null,16]
["Belyavskiy Evgeniy",12,30,39,26,107]
["Berdyshev Evgeniy",1,0,2,2,5]
["Berenbeyn Aleksandr",8,9,14,17,48]
["Berezovoy Aleksandr",0,6,null,null,6]
["Berg Daria ",null,null,7]
["Berg Maksim",0,17,12,1,30]
["Berlin Sergey",0,8,null,null,8]
["Bezotosniy Viktor",0,16,9,null,25]
["Bezuglov Andrey",null,null,null,5,5]
["Bikeev Talgat",16,18,20,null,54]
["Biriukov Aleksandr",9,7,null,null,16]
["Blazhchishyn Stanislav",null,null,null,1,1]
["Boeva Anastasiya",0,1,null,null,1]
["Bogdanovskiy Aleksandr",null,null,1,null,1]
["Bolbas Viktor",8,0,null,null,8]
["Bolbas Viktor_2",2,0,null,null,2]
["Bolev Sergey",0,7,null,null,7]
["Bolshakova Olesya",null,null,1,null,1]
["Bondar Ilya",0,1,null,null,1]
["Bondarchuk Aleksandr",0,1,null,null,1]
["Bondarev Aleksandr",3,0,null,null,3]
["Boretskiy Maksim",4,0,null,null,4]
["Borisov Aleksandr",null,null,null,5,5]
["Borisov Nikolay",10,12,null,null,22]
["Borov Anzor",3,0,null,null,3]
["Botvinnik Igor",null,null,null,2,2]
["Bovaev Elvig",2,1,null,12,15]
["Boyazitov Ramil",31,0,null,null,31]
["Boyko Aleksey",1,0,null,null,1]
["Boytler Kirill",0,7,null,null,7]
["Bozhich Andrey",4,0,null,null,4]
["Budarina Tatyana",0,1,null,null,1]
["Budenchuk Vladimir",null,null,null,7,7]
["Bukharov German",null,null,6,null,6]
["Bulatov Artem",11,13,7,7,38]
["Buldakov Nikolay",0,4,null,null,4]
["Bulgakov Vladimir",5,0,null,null,5]
["Buyankina Marina",1,2,1,1,5]
["Bystrov Maksim",0,7,null,null,7]
["Chashchin Igor",0,7,null,null,7]
["Chelpanov Aleksey",1,0,null,null,1]
["Cheltsov Anton",5,0,null,null,5]
["Chemeris Viktor",null,null,1,null,1]
["Chepkasov Dmitriy",0,1,null,null,1]
["Cherkashin Andrey",30,18,22,13,83]
["Cherkasov Grigoriy",1,0,null,null,1]
["Chershnev Sergey",null,null,3,null,3]
["Chernyi Roman",2,1,null,null,3]
["Chikislov Igor",null,null,null,6,6]
["Chistyakov Konstantin",1,1,null,null,2]
["Cholokyan Andronik",8,7,null,null,15]
["Chop Dmitriy",null,null,17,16,33]
["Chumakov Sergey",null,null,null,6,6]
["Churikov Mikhail",0,8,null,null,8]
["Chuvilin Denis",null,null,null,5,5]
["Chvilev Aleksey",null,null,5,12,17]
["Danilov Konstantin",14,0,null,null,14]
["Danilushkin Aleksey",null,null,null,2,2]
["Davoyan Franchesko",null,null,16,null,16]
["Davydov Armen",10,9,3,null,22]
["Davydov Dmitriy",null,null,7,6,13]
["Dayneko Artem",22,37,null,22,81]
["Dedelov Fedor",24,38,null,21,83]
["Demb Valentin",null,null,3,null,3]
["Demenkov Vladimir",0,20,null,1,21]
["Demin Dmitriy",null,null,null,3,3]
["Demin Evgeniy_1986",4,0,null,null,4]
["Demenkov Vladimir",null,null,4,null,4]
["Demonov Sergey",6,12,8,2,28]
["Deniskina Victoriya",null,null,1]
["Denisov Pavel",11,7,14,1,33]
["Derbyshev Vyacheslav",0,14,13,15,42]
["Dergachev Nikita",0,18,null,null,18]
["Deripalko Mariya",0,1,null,null,1]
["Devyatkina Olga",0,3,null,null,3]
["Dmitriyev Aleksandr",19,0,null,null,19]
["Donets Aleksey",33,30,23,4,90]
["Doronin Maksim",3,0,null,null,3]
["Dorozhkin Sergey",null,null,null,3,3]
["Doshchanov Amangeldy",null,null,18,26,44]
["Dosikov Ilyaz",null,null,null,1,1]
["Dosychev Kirill",2,0,null,null,2]
["Drozd Anastasiya",0,3,null,null,3]
["Dubarev Andrey",null,null,2,null,2]
["Dubeyko Mikhail",26,1,8,9,44]
["Dubnov Igor",null,null,7,null,7]
["Dubnov Yuriy",null,null,4,null,4]
["Dziuba Sergey",1,0,null,null,1]
["Edilbekov Arseniy",3,0,null,null,3]
["Efimov Fedor",0,3,null,null,{"$f":"E175+B175+C175+D175","v":3}]
["Egorov Vladimir",null,null,1,null,1]
["Egorov Nikita",0,6,null,4,10]
["Elin Denis",0,2,null,null,2]
["Eliseev Konstantin",1,0,null,null,1]
["Emelyanov Aleksey",0,4,null,null,4]
["Eremin Dmitriy",null,null,null,9,9]
["Erokhin Andrey",null,null,3,null,3]
["Ershov Andrey",12,6,20,null,38]
["Ershov Dmitriy",null,null,8,null,8]
["Esaulov Vladislav",1,6,null,6,13]
["Esaulova Diana",0,1,null,null,1]
["Esipov Igor",null,null,null,8,8]
["Evdokimov Vitaliy",null,null,6,1,7]
["Evrova Milana",0,1,null,null,1]
["Evseev Aleksey",1,1,null,null,2]
["Fadeev Vladimir",1,5,1,null,7]
["Falkovsky Igor",0,16,null,null,16]
["Farafontov Aleksandr",13,17,15,3,48]
["Fedchenko Mikhail",17,19,null,null,36]
["Fedin Dmitriy",null,null,null,1,1]
["Fedorenko Dmitriy",15,0,null,null,15]
["Fedorov Anton",0,14,null,null,14]
["Fedorov Denis",null,null,null,4,4]
["Fedorov Roman",null,null,null,7,7]
["Fedorova Yuliya",null,null,null,3,3]
["Fedorov Yuriy",null,null,null,3,3]
["Fedotov Anton",null,null,3,null,3]
["Filimonov Filipp",0,1,null,null,1]
["Firfarov Dmitriy",5,0,9,13,27]
["Firsov Kirill",null,null,25,null,25]
["Firsov Sergey",5,13,2,3,23]
["Firsova Elena",0,1,null,null,1]
["Flegontov Maksim",null,null,null,2,2]
["Fogel Evgeniy",1,3,null,1,5]
["Fokin Valeriy",15,19,10,20,64]
["Fomenko Grigoriy",1,4,5,1,11]
["Fridman Ilia",12,13,null,null,25]
["Frivlik Aleksandr",null,null,1,null,1]
["Fu Mikhail",null,null,13,null,13]
["Funikov Viktor",22,24,32,23,101]
["Gadziev Murat",null,null,null,5,5]
["Galaktionov Aleksey",2,5,4,3,14]
["Galeev Gennadiy",null,null,null,2,2]
["Galiullin Ruslan",0,9,null,null,9]
["Gaprindashvili Roman",2,0,null,null,2]
["Garagulia Anton",1,0,null,null,1]
["Garanin Nikolay",null,null,4,null,4]
["Gashkov Mikhail",0,4,null,3,7]
["Gavrilov Aleksandr",0,10,null,null,10]
["Gavrilov Nikolay",0,4,null,null,4]
["Gaydukov Aleksandr",0,7,null,null,7]
["Gayvorontseva Oksana",0,10,null,null,10]
["Gayzhutis Igor",1,1,null,null,2]
["Gazarov Tovmas",1,0,null,null,1]
["Generalov Konstantin",28,29,null,null,57]
["Generalova Anastasiya",7,0,null,null,7]
["Gilerson Yakov",null,null,3,null,3]
["Gilyazitdinov Vasil",0,6,null,null,6]
["Girfanov Marat",0,6,null,null,6]
["Gladkiy Sergey",0,1,null,null,1]
["Gluzdovskaya Yuliya",0,9,null,null,9]
["Goldberg Leonid",2,3,4,null,9]
["Gololobov Maksim",null,null,4,null,4]
["Golovchenko Vyacheslav",0,16,25,2,43]
["Golovin Dmitriy",null,null,6,9,15]
["Goncharov Ruslan",0,1,9,null,10]
["Gorbachev Mikhail",0,1,null,null,1]
["Gorbunov Boris",0,4,null,null,4]
["Gorbunov Mikhail",0,6,null,null,6]
["Gordeeva Darya",0,1,null,null,1]
["Gordeev Sergey",null,null,11,null,11]
["Gordienko Andrey",null,null,1,null,1]
["Gorlenko Yuriy",3,1,null,1,5]
["Gorshkova Alina",0,2,null,null,2]
["Gorshkova Anastasiya",null,null,null,1,1]
["Grachev Grigoriy",null,null,1,null,1]
["Grenko Andrey",0,11,null,null,11]
["Grigorash Grigoriy",8,0,null,null,8]
["Grigorenko Roman",0,2,null,null,2]
["Grigorov Evgeniy",7,13,null,null,20]
["Grigoryan Mels",0,1,null,null,1]
["Grigoryev Igor",0,3,1,null,4]
["Grigoryeva Liliya",0,1,null,null,1]
["Grigoryeva Oksana",0,3,null,1,4]
["Grinkiv Andrey",0,1,null,null,1]
["Grinko Andrey",null,null,14,null,14]
["Grishin Aleksandr",null,null,5,null,5]
["Grishin Aleksey",0,3,null,1,4]
["Gritsenko Aleksey",9,8,null,null,17]
["Gromyshkov Aleksandr",null,null,17,null,17]
["Grudinskiy Anatoliy",0,3,null,2,5]
["Gruzd Viktor",0,2,null,null,2]
["Gubashkin Aleksey",1,1,1,2,{"$f":"E268+B268+C268+D268","v":5}]
["Gubinov Anatoliy",0,2,36,4,42]
["Halgaeva Ninel",null,null,null,2,2]
["Ibragimov Abdul",0,1,null,null,1]
["Ibragimov Artur",0,12,null,null,12]
["Ichiro Tokugawa",null,null,null,9,9]
["Ignatyev Aleksey",null,null,null,9,9]
["Ilin Evgeniy",0,5,null,null,5]
["Ilin Kirill",0,6,null,null,6]
["Ilyin Evgeniy",null,null,4,null,4]
["Ivanov Andrey",0,2,null,null,2]
["Ivanov Dmitriy",null,null,null,5,5]
["Ivanov Evgeniy",null,null,null,2,2]
["Ishmetov Vadim",null,null,1,null,1]
["Iskusnykh Denis",null,null,3,null,3]
["Ivanov Evgeniy",null,null,3,null,3]
["Ivashchenko Mariya",null,null,1,null,1]
["Izmaylov Igor",11,12,16,8,47]
["Izumova Anastasiya",0,1,null,null,1]
["Kadirov Aleksey",0,1,null,null,1]
["Kakadzhanov Timur",null,null,20,null,20]
["Kalashnikov Ilya",2,1,null,null,3]
["Kaliankovich Siarhey",0,20,null,null,20]
["Kalinin Stanislav",null,null,null,6,6]
["Kalinin Maksim",null,null,null,4,4]
["Kalish Aleksandr",null,null,null,3,3]
["Kalpenskiy Sergey",5,2,3,1,11]
["Kalugin Mikhail",2,0,null,null,2]
["Karlov Vsevolod",null,null,2,null,2]
["Karpovich Kirill",2,0,null,null,2]
["Karyaeva Anastasiya",0,1,null,null,1]
["Karyakin Dmitriy",0,2,null,null,2]
["Kashapova Enzhe",0,3,null,null,3]
["Kashirtsev Ilya",null,null,2,null,2]
["Kashchenko Vladislav",null,null,null,3,3]
["Kashtanov Aleksey",null,null,15,null,15]
["Kasumov Timur",16,0,null,null,16]
["Katsuk Vasiliy",null,null,1,null,1]
["Katymaev Evgeniy",14,0,null,7,21]
["Kayurov Aleksandr",0,5,null,null,5]
["Kazaryan Genry",null,null,null,14,14]
["Kazbekov Boris",12,10,12,8,42]
["Kel Ivan",0,1,null,null,1]
["Kernozik Pavel",null,null,null,11,11]
["Khabibullina Alina",0,5,null,null,5]
["Khachatryan Armen",17,17,23,null,57]
["Khaimov John",null,null,null,6,6]
["Khan Aleksandr",9,0,null,null,9]
["Khanin Phillip",null,null,null,1,1]
["Kharkov Ivan",0,2,null,null,2]
["Kharlov Evgeniy",0,6,null,10,16]
["Khasanova Ilmira",null,null,3,null,3]
["Khaveev Sergey",0,11,null,null,11]
["Khaveev Sergey_2",0,4,null,null,4]
["Khavin Konstantin",null,null,10,null,10]
["Khelyal Semir",0,1,null,null,1]
["Khitrykh Ivan",0,5,null,null,5]
["Khizhnyak Aleksandr",0,6,null,null,6]
["Khokhlov Sergey",null,null,null,10,10]
["Khomchuk Ekaterina",null,null,1,null,1]
["Khomenko Dmitriy",0,1,null,null,1]
["Khramov Ivan",null,null,null,4,4]
["Khron Aleksandr",null,null,4,null,4]
["Khrushchev Danil",null,null,null,1,1]
["Kiliushev Andrey",4,10,8,3,25]
["Kim Evgeniy",23,0,null,null,23]
["Kim Kirill",null,null,17,null,17]
["Kim Sergey",0,14,null,8,22]
["Kiperband Igor",1,0,null,null,1]
["Kirichenko Konstantin",0,11,13,8,32]
["Kirichenko Vladislav",0,8,null,null,8]
["Kirilyuk Yuriy",null,null,4,1,5]
["Kiryliuk Kirill",0,15,null,null,15]
["Kiselev Vladislav",2,0,null,null,2]
["Kitaeva Ksenia",0,1,null,null,1]
["Klenin Georgiy",0,8,null,null,8]
["Klyashtorniy Artem",2,0,null,null,2]
["Klyzhko Ilya",0,12,null,null,12]
["Kochanov Averkiy",null,null,null,1,1]
["Kochergin Igor",0,2,null,null,2]
["Kokorev Aleksandr",null,null,null,4,4]
["Kolendo Aleksandr",25,17,null,null,42]
["Kolesnikov Nikolai",6,0,null,null,6]
["Kolomiets Andrey",0,2,1,null,3]
["Kolomiets Konstantin",0,2,1,null,3]
["Kolosov Daniil",26,0,null,null,26]
["Kolotyuk Ksenia",12,0,null,null,12]
["Kolotyuk Roman",57,0,null,25,82]
["Koltsov Andrey",0,5,null,null,5]
["Kolyaskin Maksim",1,0,2,null,3]
["Komarov Aleksey",1,0,null,null,1]
["Kononenko Petr",17,4,null,null,21]
["Kononykhin Mikhail",null,null,null,4,4]
["Konovalov Nikita",16,9,16,3,44]
["Konovalov Sergey",39,72,28,11,150]
["Koptev Pavel",0,1,1,null,2]
["Kopyl Dmitriy",null,null,21,2,23]
["Korchagin Evgeniy",21,17,null,15,53]
["Korchagina Evgeniya",0,2,null,null,2]
["Korolev Ruslan",1,4,4,1,10]
["Korotkiy Denis",0,3,null,null,{"$f":"E368+B368+C368+D368","v":3}]
["Koryakin Vitaliy",0,11,null,null,11]
["Korzh Artem",1,1,null,null,2]
["Kosarev Andrey",15,7,null,4,26]
["Kosarev Viktor",null,null,9,null,9]
["Kosarev Pavel",1,5,null,null,6]
["Kosko Stanislav",5,2,null,null,7]
["Kostikin Roman",0,3,null,null,3]
["Kostin Mikhail",null,null,null,1,1]
["Kostousov Maksim",null,null,1,null,1]
["Kotelnikov Vasiliy",0,20,null,null,20]
["Kovalenko Aleksandr",null,null,null,1,1]
["Kovalenko Aleksey",8,0,null,null,8]
["Kovalenko Maksim",1,0,null,null,1]
["Kovalev Ivan",0,1,null,3,4]
["Kovalev Mark",null,null,null,12,12]
["Kovalev Mikhail",3,5,3,null,11]
["Kovalevskaya Irina",0,3,1,2,6]
["Kovalevskiy Dmitriy",4,10,null,null,14]
["Kovanin Sergey",0,8,11,null,19]
["Kozhevnikov Dmitriy",0,1,1,2,4]
["Kozhevnikov Grigoriy",0,2,null,null,2]
["Kozhevnikov Igor",0,12,null,15,27]
["Kozhevnikov Sergey",1,1,null,2,4]
["Kozhevnikov Kirill",null,null,null,2,2]
["Kozhevnikova Lidiya",0,6,null,null,6]
["Kozhukhov Kirill",0,1,null,null,1]
["Kozlov Aleksey",10,0,null,null,10]
["Krasikov Artur",2,0,null,null,2]
["Krasilnikov Sergey",0,14,null,null,14]
["Krasnov Dmitriy",null,null,null,9,9]
["Kress Igor",8,16,15,13,52]
["Krokhin Sergey",null,null,null,1,1]
["Kruchinin Ignat",null,null,null,6,6]
["Krupnov Sergey",null,null,null,6,6]
["Krutskikh Roman",2,3,3,1,9]
["Krylov Nikolay",0,4,null,null,4]
["Ksagorari Artem",0,9,6,null,15]
["Ksendzovskiy Ilia",0,32,9,9,50]
["Kudryashov Roman",null,null,7,null,7]
["Kudzhaev Dzhamaldin",0,4,null,null,4]
["Kukhalskiy Viktor",0,4,null,null,4]
["Kulakov Aleksey",7,0,6,null,13]
["Kulbyakina Tatyana",null,null,1,null,1]
["Kuliev Rustam",null,null,null,4,4]
["Kuldyaykin Ivan",0,4,null,null,4]
["Kureev Vadim",null,null,6,null,6]
["Kurepchikov Rodion",1,1,null,null,2]
["Kurochkin Anton",null,null,20,null,20]
["Kurvachev Maksim ",null,null,2,null,2]
["Kushichev Sergey",null,null,1,null,1]
["Kuzin Valeriy",0,10,null,null,10]
["Kuznetsov Aleksandr",0,9,17,null,26]
["Kuznetsov Nikita",null,null,null,6,6]
["Kuznetsov Viktor",null,null,null,5,5]
["Kydatov Lev",32,3,null,8,43]
["Lapin Ilya",5,0,null,null,5]
["Lapitskiy Egor",0,6,null,null,6]
["Lavrikov Sergey",19,19,27,14,79]
["Lavritov Anton",null,null,null,2,2]
["Lavrov Andrey",0,1,1,1,3]
["Lazarev Roman",2,0,1,null,3]
["Lebedev Denis",0,9,null,null,9]
["Lebedev Vadim",0,4,null,null,4]
["Lebedeva Svetlana ",null,null,7,null,7]
["Lee Vitaliy",0,17,null,null,17]
["Legezin Ilya",null,null,6,null,6]
["Leonov Vladimir",1,0,null,null,1]
["Lepeshkin Oleg",null,null,null,3,3]
["Lepikov Stanislav",null,null,null,1,1]
["Levchenko Sergey",0,3,null,null,3]
["Levin Aleksandr",13,0,null,null,13]
["Levin Aleksey",4,0,null,null,4]
["Lezhnev Ilya",20,0,null,null,20]
["Li Vitaliy",31,0,13,13,57]
["Lifshits Aleksandr",0,8,null,null,8]
["Ligay Maksim",12,3,null,2,17]
["Limanskaya Mariya",null,null,null,1,1]
["Logay Viktor",2,11,null,5,18]
["Loginov Konstantin",2,4,null,null,6]
["Lopushenko Sergey",7,9,5,null,21]
["Lukiyan Vadim",0,9,6,4,19]
["Lylina Angelina",null,null,2,null,2]
["Lyugai Boris",null,null,26,null,26]
["Ma Zhiyuan",3,0,null,null,3]
["Maksimova Irina",0,1,null,null,1]
["Malis Boris",null,null,2,9,11]
["Malishevskiy Vladimir",null,null,null,2,2]
["Malyshev Denis",0,14,null,null,14]
["Malyshev Ruslan",0,1,null,null,1]
["Mamedgasanov Bunyad",null,null,3,null,3]
["Mamro Konstantin",0,1,null,null,1]
["Manucharov Grigoriy",null,null,null,1,1]
["Manukyan Gagik",0,2,null,null,2]
["Mardonov Mukhamadzhon",null,null,null,1,1]
["Marenkov Igor",0,2,null,null,{"$f":"E463+B463+C463+D463","v":2}]
["Marinina Eseniya",0,1,null,null,1]
["Markova Elizaveta",0,2,3,2,7]
["Martirosyan Armen",0,1,null,null,1]
["Martirosyan Gurgen",1,0,null,null,1]
["Martoyan Karen",0,3,null,null,3]
["Maslakov Mikhail",15,0,null,null,15]
["Maslyanov Nikolay",0,1,null,null,1]
["Matananov Vadim ",null,null,null,2,2]
["Matchenya Aleksey",0,1,null,null,1]
["Matveev Georgiy",null,null,null,8,8]
["Matveev Stanislav",0,1,null,null,1]
["Matulevichyus Mikhail",null,null,4,null,4]
["Matson Denis",null,null,null,2,2]
["Mediukha Evgeniy",13,17,16,9,55]
["Medvedev Sergey",null,null,null,6,6]
["Miftyagdinov Damir",null,null,2,null,2]
["Melnik Petr",null,null,2,null,2]
["Merkulova Sofya",null,null,null,3,3]
["Meshkov Pavel",9,0,null,null,9]
["Meshkova Marina",3,0,null,null,3]
["Metelitsa Vyacheslav",8,6,null,null,14]
["Metelskiy Artem",null,null,null,6,6]
["Mikhalchuk Nikolay",3,0,null,null,3]
["Mikhalev Aleksandr",8,0,16,9,33]
["Mikhalin Nikita",null,null,null,7,7]
["Mikhaylov Artur",0,14,null,null,14]
["Mikhaylov Maksim",0,6,4,null,10]
["Mikhaylova Olga",0,4,1,null,5]
["Mikheev Stepan",null,null,1,null,1]
["Mikitenko Vasiliy",11,11,null,1,23]
["Minduvaeva Valentina",0,1,null,null,1]
["Miroshnichenko Evgeny",14,20,11,5,50]
["Mishakov Stanislav",0,1,null,null,1]
["Mishin Aleksey",0,2,null,null,2]
["Mishin Stepan",5,0,6,null,11]
["Mityaev Ruslan",16,0,null,null,16]
["Mgoyan Alik",null,null,null,1,1]
["Mgoyan Artur",null,null,7,null,7]
["Mogilevskiy Vladislav",0,1,null,null,1]
["Morozov Konstantin",null,null,null,2,2]
["Moskatelnikov Vyacheslav",null,null,5,1,6]
["Mramornov Aleksey",9,4,10,4,27]
["Mudritskaya Elena",0,1,1,null,2]
["Mukhametzyanov Marsel",0,12,null,null,12]
["Muratov Rustem",7,7,6,5,25]
["Mustafin Amir",0,6,null,null,6]
["Mustafin Roman",null,null,2,null,2]
["Mustafin Ilmar",null,null,13,null,13]
["Myagkov Aleksey",null,null,1,null,1]
["Nabiev Afis",0,16,34,18,68]
["Nakonechniy Pavel",1,0,null,null,1]
["Nalimov Ilya",2,0,null,null,2]
["Nasiradinov Mukhtar",null,null,null,4,4]
["Nasonov Evgeniy",null,null,5,null,5]
["Naumov Vladislav",0,14,null,null,14]
["Naumychev Maksim",null,null,null,4,4]
["Nechaev Ivan",null,null,13,null,13]
["Nefedov Ilya",null,null,4,null,4]
["Nekrasov Aleksandr",0,18,null,null,18]
["Nekrasov Maksim",0,10,null,null,10]
["Nekrasov Sergey",7,6,null,null,13]
["Nekrasova Anna",0,10,null,null,10]
["Nesiev Ruslan",12,16,null,10,38]
["Nesterenko Maksim",null,null,null,1,1]
["Nevolin Aleksandr",1,0,null,null,1]
["Nikanovich Mikalai",13,15,null,null,28]
["Nikiforov Anton",8,5,null,null,13]
["Nikitin Eduard",0,2,1,null,3]
["Nikitin Pavel",null,null,1,1,2]
["Nikitin Sergey",0,9,9,null,18]
["Nikolaev Aleksandr",null,null,1,null,1]
["Nikolaev Anatoliy",0,11,null,null,11]
["Nikolenko Aleksey",16,0,null,16,32]
["Nolde Sergey",0,2,null,null,2]
["Nosenko Igor",0,1,null,null,1]
["Nosov Igor",0,3,null,null,3]
["Novik Evgeniy",2,0,null,null,2]
["Novikov Artem",1,0,null,null,1]
["Novikova Ekaterina",null,null,null,3,3]
["Novikov Nikolay",0,18,null,9,27]
["Nuraev Roman",8,14,null,null,22]
["Nurmagomedov Magomed",32,19,null,null,51]
["Nurulina Elena",0,2,null,null,2]
["Nurullin Aydar",19,0,null,null,19]
["Obleukhov Kirill",null,null,null,1,1]
["Obukhov Yuriy",0,2,null,null,2]
["Ogannisyan Artur",null,null,3,null,3]
["Olle Aleksey",21,17,17,10,65]
["Orlov Roman",3,6,null,8,17]
["Osadchiy Andrey",0,3,null,null,3]
["Osharov Aleksandr",0,9,null,null,9]
["Osipov Pavel",0,1,null,null,1]
["Osotskiy Aleksandr",0,1,null,null,{"$f":"E556+B556+C556+D556","v":1}]
["Otkosov Aleksandr",3,13,4,null,20]
["Otkosov Evgeniy",0,3,null,6,9]
["Ovcharenko Pavel",0,1,null,3,4]
["Ovcharov Vladimir",22,27,11,null,60]
["Ovchinnikov Valeriy",0,1,null,null,1]
["Ovodov Aleksandr",0,13,null,null,13]
["Ovsyannikov Aleksey",1,0,null,null,1]
["Padzialinski Pavel",1,1,null,null,2]
["Paimukhin Vladislav",0,5,1,null,6]
["Pak Aleksey",null,null,null,1,1]
["Palenov Iliya",null,null,null,3,3]
["Panfilov Dmitriy",0,1,2,null,3]
["Panfilov Iliya",null,null,null,8,8]
["Panina Anastasiya",0,1,null,null,1]
["Panteleev Andrey",0,3,null,null,3]
["Pantiukhin Aleksandr",4,3,5,3,15]
["Papeka Ihar",3,0,null,null,3]
["Pavlenko Aleksey",19,17,14,2,52]
["Pavlova Ksenya",0,1,null,null,1]
["Perelygin Sergey",null,null,11,null,11]
["Perepchik Ulyana",null,null,null,1,1]
["Permyakov Iliya",null,null,null,2,2]
["Pershin Vladislav",null,null,1,null,1]
["Petrov Aleksey",null,null,null,1,1]
["Petrov Aleksandr",null,null,null,1,1]
["Phrolov Roman",null,null,1,null,1]
["Piliuganova Svetlana",0,8,3,null,11]
["Pilkevich Artem",null,null,5,1,6]
["Piven Artur",0,6,null,null,6]
["Pivovarov Anton",0,3,null,null,3]
["Plaksin Igor",0,1,null,null,1]
["Plyaskina Viktoriya",0,1,null,null,1]
["Pobedonostsev Maksim",0,5,null,null,5]
["Pochinok Roman",0,9,2,null,11]
["Pochuev Ivan",null,null,6,null,6]
["Podivilov Dmitriy",0,2,null,5,7]
["Podolskaya Raisa",0,1,null,null,1]
["Pogosov Arsen",0,4,null,null,4]
["Pogosov Arut",null,null,null,4,4]
["Pogosyan Vage",0,15,null,null,15]
["Pollenskiy Dmitriy",0,2,8,null,10]
["Pollenskiy Evgeniy",0,7,2,null,9]
["Polnarev Konstantin",3,1,null,null,4]
["Polosmak Maksim",0,10,null,null,10]
["Polosmak Natalia",0,12,null,null,12]
["Ponkratyev Sergey",1,0,null,null,1]
["Ponomarenko Mikhail",0,6,null,null,6]
["Ponomarev Dmitriy",0,4,null,null,4]
["Popeka Igor",1,0,null,null,1]
["Popov Anton",null,null,7,null,7]
["Porchuk Igor",2,3,null,null,5]
["Potapkin Artem",1,0,null,null,1]
["Potapkin Vladlen",0,1,null,null,1]
["Potapov Aleksandr",null,null,6,6,12]
["Potapov Aleksey",null,null,2,null,2]
["Potysyev Danil",null,null,4,null,4]
["Prent Natalya",1,0,1,null,2]
["Prigarnyi Aleksandr",null,null,null,11,11]
["Pripadchev Aleksey",0,11,null,null,11]
["Prizvan Arkadiy",0,10,null,null,10]
["Prokopovich Aleksandr",0,1,null,null,1]
["Prokopovich Marina",0,1,null,null,1]
["Pronin Aleksandr",null,null,null,5,5]
["Proskurin Oleg",0,4,null,null,4]
["Pugachev Andrey",0,7,9,null,16]
["Puraev Artemiy",0,3,2,1,6]
["Pushik Sergey",null,null,null,4,4]
["Pustovoy Aleksandr",null,null,null,1,1]
["Puzanov Artem",14,0,null,10,24]
["Rafikov Adel",12,0,null,18,30]
["Rakhov Dmitriy",0,2,null,null,2]
["Rakovich Ivan",0,10,null,null,10]
["Ralko Pavel",0,4,null,null,{"$f":"E629+B629+C629+D629","v":4}]
["Rasputin Vasiliy",null,null,3,1,{"$f":"E630+B630+C630+D630","v":4}]
["Rasputin Valeriya",null,null,1,null,{"$f":"E631+B631+C631+D631","v":1}]
["Rasulov Arif",0,15,null,null,15]
["Razumov Oleg",0,4,null,null,4]
["Rebrikova Ekaterina",0,2,null,null,2]
["Ro Gleb",null,null,null,9,9]
["Rodin Sergey",5,14,null,4,23]
["Rogov Ilya",0,12,null,null,12]
["Rogov Maksim",21,16,11,8,56]
["Rogozhnikova Marina",null,null,null,1,1]
["Romanov Aleksandr",null,null,null,7,7]
["Romanova Ksenia",null,null,1,null,1]
["Romanov Maksim",0,7,null,null,7]
["Romanovich Artem ",null,null,8,null,8]
["Romanovich Konstantin",null,null,1,null,1]
["Romanyuk Yana",null,null,15,null,15]
["Roshchanikov Aleksandr",1,0,null,null,1]
["Rozanov Sergei",3,3,null,5,11]
["Rozinov Aleksandr",5,0,null,2,7]
["Rudakova Sofia",0,8,2,null,10]
["Rudkovskiy Ilya",null,null,10,null,10]
["Ryaboshapka Pavel",6,0,null,null,{"$f":"E651+B651+C651+D651","v":6}]
["Rybak Igor",10,11,null,7,28]
["Rybakov Aleksandr",4,0,null,null,4]
["Rybakova Alina",3,0,null,null,3]
["Rybin Andrei",0,1,null,null,1]
["Rybin Andrey",12,0,null,null,12]
["Rzaev Adil",2,3,null,null,5]
["Sabaev Konstantin",0,13,null,null,13]
["Sadov Pavel",0,3,null,1,4]
["Sadova Elena",0,1,null,null,1]
["Safin Timur",4,4,6,6,20]
["Sagaev Denis",18,22,null,22,62]
["Sakhnevich Vadim",0,2,null,null,2]
["Salabaev Dmitriy",5,6,7,1,19]
["Samoylov Aleksey",null,null,1,null,1]
["Samoylova Irina",null,null,2,null,2]
["Sapronov Aleksandr",null,null,1,null,1]
["Sarymsakov Amir",6,0,null,null,6]
["Satinskaya Viktoria",0,2,2,3,7]
["Saulenas Arturas",0,6,null,null,6]
["Saulenas Mariya",0,1,null,null,1]
["Savchenko Andrey",0,7,null,3,10]
["Savchenkov Konstantin",null,null,null,2,2]
["Savelyeva Ekaterina",0,2,null,null,2]
["Savelyev Nikita",null,null,3,null,3]
["Savitskiy Stanislav",4,6,2,3,15]
["Sayapin Yuriy",37,51,33,13,134]
["Sayapina Natalya",3,7,null,null,10]
["Sayko Vitaliy",0,7,10,4,21]
["Schetkin Kirill",null,null,null,2,2]
["Seliverstov Sergey",null,null,null,5,5]
["Semenikhin Aleksey",0,14,null,null,14]
["Semenov Anatoliy",0,2,null,null,2]
["Semenov Sergey",null,null,null,19,19]
["Semenyachenko Roman",0,1,1,null,2]
["Serbun Anton",0,2,3,2,7]
["Serdiukov Dmitriy",0,15,null,null,15]
["Sereda Igor",10,9,13,3,35]
["Sergeev Artem",12,0,null,null,12]
["Sergeev Evgeniy",null,null,null,1,1]
["Sergeev Oleg",null,null,4,null,4]
["Sergienko Evgeniy",null,null,null,1,1]
["Serov Pavel ",null,null,6,null,6]
["Sevumyan Albert",null,null,null,4,4]
["Shabalin Denis",9,2,4,1,16]
["Shabalin Ilya",39,21,null,null,60]
["Shakhnazarov Igor",null,null,4,null,4]
["Shaferman Maria",0,1,null,null,1]
["Shafigullin Ilnaz",1,0,null,null,1]
["Shafigullin Salavat",8,0,null,null,8]
["Shakaryan Ernest",12,9,null,null,21]
["Shakirov Ayrat",20,8,26,null,54]
["Shakirov Sergey",4,0,null,null,4]
["Shakirova Olga",1,0,null,null,1]
["Shalaumov Oleg",null,null,12,null,12]
["Shaposhnikova Anastasiya",0,1,null,null,1]
["Sharenkov Grigoriy",1,0,null,null,1]
["Sharipov Timofei",null,null,1,null,1]
["Shaykov Irshat",null,null,null,8,8]
["Shchebenkov Aleksandr",null,null,1,null,1]
["Shchednov Sergey",null,null,null,1,1]
["Shcheglov Gleb",null,null,null,1,1]
["Shchepelev Maksim",0,1,null,1,2]
["Shcherbakov Maksim",3,0,null,null,3]
["Shcherbakov Roman",0,6,1,null,7]
["Shcherban Lubov",0,1,null,null,1]
["Shebalkov Nikita",0,1,null,null,1]
["Shein Ilya",null,null,1,null,1]
["Shelever Vitaliy",19,15,7,6,47]
["Shemyakin Fedor",null,null,2,null,2]
["Shestakov Maksim",null,null,19,null,19]
["Shevchenko Ekaterina",null,null,null,10,10]
["Shevelev Viktor",null,null,null,1,1]
["Sheverdin Kirill",4,0,null,2,6]
["Shchigolev Aleksandr",null,null,1,null,1]
["Shipulin Sergey",null,null,1,null,1]
["Shirokikh Aleksey",null,null,5,null,5]
["Shishkin Aleksandr",0,4,null,null,4]
["Shishov Evgeniy",null,null,null,4,4]
["Shkolnik Evgeniy",0,4,11,null,15]
["Shkradov Aleksandr",13,11,5,4,33]
["Shmagun Valentin",4,8,18,6,36]
["Shopin Ruslan ",null,null,2,null,2]
["Shopov Konstantin",null,null,null,1,1]
["Shostak Stanislav",0,1,null,null,1]
["Shubin Andrey",0,11,21,25,57]
["Shulgin Andrei",0,4,null,null,4]
["Shuloyakov Ildar",1,0,null,null,1]
["Shumeyko Dmitriy",0,12,null,null,12]
["Shumskiy Aleksandr",0,19,null,null,19]
["Shurkhno Aleksey",0,6,null,null,6]
["Shutkin Leonid",null,null,null,14,14]
["Sidorenko Denis",6,0,null,null,6]
["Sidorin Sergey",null,null,null,3,3]
["Sivkov Nikolay",2,1,null,null,3]
["Siziev Mikhail",3,13,null,null,16]
["Skorokhod Kirill",0,4,null,null,4]
["Skryabin Aleksandr",4,0,null,null,{"$f":"E748+B748+C748+D748","v":4}]
["Skvortsov Sergey",0,1,null,null,1]
["Smakotin Evgeniy",0,4,1,1,6]
["Sobennikov Aleksey",null,null,null,6,6]
["Sobianin Oleg",null,null,null,1,1]
["Sokolov Efim",null,null,null,1,1]
["Sokolov Aleksey",0,6,3,1,10]
["Solonina Angelina",1,0,null,null,1]
["Solovyev Dmitriy",null,null,null,2,2]
["Sorokin Andrey",null,null,null,3,3]
["Sotnichenko Galina",0,1,null,null,1]
["Sotov Andrey ",null,null,6,4,10]
["Spiridonov Aleksandr",0,7,null,null,7]
["Stamatin Artem",0,7,null,null,7]
["Starodubov Vitaliy",0,1,2,2,5]
["Stepanov Arkadiy",9,13,11,13,46]
["Stoponkus Richardas",1,0,1,null,2]
["Stoyka Roman",0,23,23,13,59]
["Strelyaeva Ekaterina",0,1,null,null,1]
["Stukalov Andrey",null,null,null,1,1]
["Subbotin Vyacheslav",1,0,2,null,3]
["Sudakova Anastasiya",null,null,null,6,6]
["Suchkov Andrey",null,null,7,null,7]
["Sugrobov Mikhail",null,null,null,8,8]
["Sukhoverkhov Vitaliy",null,null,null,2,2]
["Sukov Dmitriy",0,1,null,null,1]
["Suprunov Andrey",20,11,8,null,39]
["Surin Gleb",0,2,null,null,2]
["Suvorov Yuriy",null,null,null,11,11]
["Suy Mikhail",0,9,null,9,18]
["Syshchenko Stanislav",0,7,null,null,7]
["Tabolin Aleksandr",null,null,null,8,8]
["Tambovtsev Evgeniy",null,null,null,8,8]
["Tarapkin Maksim",0,3,null,null,3]
["Tarasov Roman",2,0,null,null,2]
["Tarasov Sergey",null,null,null,2,2]
["Tatarkin Sergey",null,null,11,null,11]
["Tatsenko Vitaliy",16,8,null,null,24]
["Terentyev Sergey",0,2,null,null,2]
["Terentyeva Alina",0,2,null,null,2]
["Teselkin Aleksandr",6,2,3,null,11]
["Tishchuk Marina",0,1,null,null,1]
["Titarenko Boris",17,5,5,null,27]
["Titenski Denis",null,null,4,null,4]
["Tonkikh Vladislav",null,null,14,18,32]
["Torbin Mikhail",0,9,null,null,9]
["Toropov Pavel",1,0,null,null,1]
["Troyanovskiy Viktor",0,3,null,null,3]
["Trubitsyn Andrey",0,5,5,4,14]
["Tsarev Ivan",null,null,null,5,5]
["Tsoroev Ibragim",1,3,6,2,12]
["Tsybulskaya Anastasiya",0,3,null,null,3]
["Tsyganov Dmitriy",null,null,2,3,5]
["Tsyganov Aleksey",0,4,4,null,8]
["Tumanov Mikhail",3,2,null,null,5]
["Turchaninov Nikita",2,0,null,null,2]
["Tyan Boris",0,13,13,null,26]
["Tyulyandin Sergey",0,1,1,null,2]
["Udachin Sergey",12,0,null,null,12]
["Ukalaev Emil",24,0,null,null,24]
["Ulanskaya Anna",null,null,2,null,2]
["Uruzov Eduard",null,null,2,null,2]
["Ulmaskulov Igor",null,null,9,20,29]
["Uskov Yuriy",1,1,null,null,2]
["Usmanov Salim",0,10,null,null,10]
["Uspanov Danat",0,3,null,null,3]
["Uspanov Renat",0,4,null,null,4]
["Utin Aleksey",14,0,null,null,14]
["Vaganian Vage",0,18,null,20,38]
["Vagina Vera",null,null,null,2,2]
["Vagin Stanislav",0,2,null,1,3]
["Vakhnenko Igor",0,29,null,null,29]
["Vakhrameev Oleg",14,0,null,null,14]
["Varentsov Vladimir",4,4,4,5,17]
["Vartikyan Artur",null,null,13,null,13]
["Vasechko Anton",0,4,null,3,7]
["Vasiliev Anatoliy",5,0,null,3,8]
["Vasiliev Evgeniy",null,null,null,4,4]
["Vasiukov Aleksey",0,1,null,null,1]
["Vdovenko Evgeniy",17,23,19,9,68]
["Verbitskiy Sergey",0,1,1,null,2]
["Verobyan Oleg",null,null,5,null,5]
["Vikharev Andrey",0,5,null,null,5]
["Vinnitsa Vitaliy",1,0,null,null,1]
["Vishniavetski Andrei",0,19,null,null,19]
["Vitchenko Denis",0,7,null,null,7]
["Vlasov Aleksey",0,10,null,null,10]
["Vlasova Violetta",0,31,null,null,31]
["Volkov Andrey",0,8,null,null,8]
["Volkov Dmitriy",null,null,4,null,4]
["Volnukhin Alesandr",0,1,null,null,1]
["Vopilov Nikolay",22,0,18,2,42]
["Vorobyev Artem",null,null,null,5,5]
["Voronkin Leonid",null,null,6,null,6]
["Voropaev Aleksandr",0,27,29,15,{"$f":"E842+B842+C842+D842","v":71}]
["Voropaev Anatoliy",9,0,null,null,9]
["Vovnenko Filipp",0,4,null,null,4]
["Voytenko Dmitriy",0,1,null,null,1]
["Voznesenskiy Nikita",0,12,null,13,25]
["Vzdykhanko Lev",0,1,null,null,1]
["Vyazmin Kirill",null,null,null,1,1]
["Vysotskiy Petr",null,null,null,4,4]
["Yakovenko Vasiliy",3,2,10,5,20]
["Yakovleva Mariya",5,2,null,null,7]
["Yakshin Pavel",1,1,1,1,4]
["Yakushenko Maksim",0,2,null,null,2]
["Yalovega Roman",4,10,22,6,42]
["Yanson Ivan",0,2,1,null,3]
["Yarmoshchuk Sergey",0,9,null,null,9]
["Yaroshetskiy Aleksandr",18,11,12,1,42]
["Yarulin Aleksey",0,3,2,1,6]
["Yarulina Alina",0,3,1,null,4]
["Yashkin Oleg",0,7,null,null,7]
["Yasnogorodskiy Ilya",0,3,null,null,3]
["Yatsenko Mark",0,3,null,null,3]
["Yusupov Sherzod",null,null,null,7,7]
["Yusupova Tatyana",null,null,null,1,1]
["Yurkov Aleksandr",0,4,null,null,4]
["Yurlov Stanislav",null,null,13,null,13]
["Zaborskii Andrei",0,4,null,null,4]
["Zakhardyaev Maksim",null,null,2,null,2]
["Zakharov Aleksey",0,6,null,null,6]
["Zakharov Igor",0,13,null,11,24]
["Zakharov Yuriy",null,null,null,4,4]
["Zakirov Zhevdet",4,0,8,1,13]
["Zakopaylo Vitaliy",17,0,13,null,30]
["Zamyatina Olga",null,null,4,1,5]
["Zanozin Pavel",0,4,null,null,4]
["Zapuskalov Stanislav",0,8,6,null,14]
["Zavarzin Denis",null,null,null,3,3]
["Zaynutdinov Ramis",0,2,null,null,2]
["Zaytsev Evgeniy",4,0,null,null,4]
["Zaytsev Ruslan",null,null,null,5,5]
["Zharneev Samat",null,null,2,null,2]
["Zhavoronkov Sergey",12,4,null,null,16]
["Zhelezniak Ruslan",23,42,19,19,103]
["Zhiltsov Evgeniy",2,0,null,null,2]
["Zhiv Grigoriy",0,3,8,4,15]
["Zhukov Ivan",null,null,1,null,1]
["Zhuravlev Ignat",null,null,1,null,1]
["Zhuravlev Aleksandr",0,1,null,null,1]
["Zhuravleva Natalya",0,1,null,null,1]
["Zhyharau Uladzimir",12,0,null,null,12]
["Zlotnikov Anatoliy",18,18,null,null,36]
["Zolotarev  Artem",null,null,null,3,3]
["Zotov Aleksey",null,null,null,9,9]
["Zotov Anton",8,0,19,12,39]
["Zverev Dmitriy",0,3,2,null,5]

{"sheet":"Кол-ву билетов 2 серии ","index":1,"n_rows":895,"n_cols":2,"rows_kept":895,"cut":false,"hidden":false,"merged":[]}
["Name","Сумма билетов"]
["Konovalov Sergey",150]
["Sayapin Yuriy",134]
["Belyavskiy Evgeniy",107]
["Zhelezniak Ruslan",103]
["Funikov Viktor",101]
["Donets Aleksey",90]
["Cherkashin Andrey",83]
["Dedelov Fedor",83]
["Kolotyuk Roman",82]
["Dayneko Artem",81]
["Lavrikov Sergey",79]
["Voropaev Aleksandr",71]
["Nabiev Afis",68]
["Vdovenko Evgeniy",68]
["Olle Aleksey",65]
["Barannikov Ilya",64]
["Fokin Valeriy",64]
["Sagaev Denis",62]
["Ovcharov Vladimir",60]
["Shabalin Ilya",60]
["Stoyka Roman",59]
["Generalov Konstantin",57]
["Khachatryan Armen",57]
["Li Vitaliy",57]
["Shubin Andrey",57]
["Rogov Maksim",56]
["Mediukha Evgeniy",55]
["Bikeev Talgat",54]
["Shakirov Ayrat",54]
["Korchagin Evgeniy",53]
["Kress Igor",52]
["Pavlenko Aleksey",52]
["Nurmagomedov Magomed",51]
["Ksendzovskiy Ilia",50]
["Miroshnichenko Evgeny",50]
["Berenbeyn Aleksandr",48]
["Farafontov Aleksandr",48]
["Belikov Dmitriy",47]
["Izmaylov Igor",47]
["Shelever Vitaliy",47]
["Albitskiy Sergey",46]
["Stepanov Arkadiy",46]
["Doshchanov Amangeldy",44]
["Dubeyko Mikhail",44]
["Konovalov Nikita",44]
["Bayramov Azer",43]
["Golovchenko Vyacheslav",43]
["Kydatov Lev",43]
["Derbyshev Vyacheslav",42]
["Gubinov Anatoliy",42]
["Kazbekov Boris",42]
["Kolendo Aleksandr",42]
["Vopilov Nikolay",42]
["Yalovega Roman",42]
["Yaroshetskiy Aleksandr",42]
["Azaryan Aleksandr",40]
["Suprunov Andrey",39]
["Zotov Anton",39]
["Ananova Anna",38]
["Bedzhanyan Levon",38]
["Bulatov Artem",38]
["Ershov Andrey",38]
["Nesiev Ruslan",38]
["Vaganian Vage",38]
["Fedchenko Mikhail",36]
["Shmagun Valentin",36]
["Zlotnikov Anatoliy",36]
["Sereda Igor",35]
["Chop Dmitriy",33]
["Denisov Pavel",33]
["Mikhalev Aleksandr",33]
["Shkradov Aleksandr",33]
["Kirichenko Konstantin",32]
["Nikolenko Aleksey",32]
["Tonkikh Vladislav",32]
["Boyazitov Ramil",31]
["Vlasova Violetta",31]
["Berg Maksim",30]
["Rafikov Adel",30]
["Zakopaylo Vitaliy",30]
["Ulmaskulov Igor",29]
["Vakhnenko Igor",29]
["Demonov Sergey",28]
["Nikanovich Mikalai",28]
["Rybak Igor",28]
["Adelberg Artur",27]
["Babushkin Nikolay",27]
["Firfarov Dmitriy",27]
["Kozhevnikov Igor",27]
["Mramornov Aleksey",27]
["Novikov Nikolay",27]
["Titarenko Boris",27]
["Kolosov Daniil",26]
["Kosarev Andrey",26]
["Kuznetsov Aleksandr",26]
["Lyugai Boris",26]
["Tyan Boris",26]
["Bezotosniy Viktor",25]
["Firsov Kirill",25]
["Fridman Ilia",25]
["Kiliushev Andrey",25]
["Muratov Rustem",25]
["Voznesenskiy Nikita",25]
["Puzanov Artem",24]
["Tatsenko Vitaliy",24]
["Ukalaev Emil",24]
["Zakharov Igor",24]
["Firsov Sergey",23]
["Kim Evgeniy",23]
["Kopyl Dmitriy",23]
["Mikitenko Vasiliy",23]
["Rodin Sergey",23]
["Belinskiy Artem",22]
["Borisov Nikolay",22]
["Davydov Armen",22]
["Kim Sergey",22]
["Nuraev Roman",22]
["Demenkov Vladimir",21]
["Katymaev Evgeniy",21]
["Kononenko Petr",21]
["Lopushenko Sergey",21]
["Sayko Vitaliy",21]
["Shakaryan Ernest",21]
["Grigorov Evgeniy",20]
["Kakadzhanov Timur",20]
["Kaliankovich Siarhey",20]
["Kotelnikov Vasiliy",20]
["Kurochkin Anton",20]
["Lezhnev Ilya",20]
["Otkosov Aleksandr",20]
["Safin Timur",20]
["Yakovenko Vasiliy",20]
["Dmitriyev Aleksandr",19]
["Kovanin Sergey",19]
["Lukiyan Vadim",19]
["Nurullin Aydar",19]
["Salabaev Dmitriy",19]
["Shestakov Maksim",19]
["Shumskiy Aleksandr",19]
["Vishniavetski Andrei",19]
["Semenov Sergey",19]
["Dergachev Nikita",18]
["Logay Viktor",18]
["Nekrasov Aleksandr",18]
["Nikitin Sergey",18]
["Suy Mikhail",18]
["Chvilev Aleksey",17]
["Gritsenko Aleksey",17]
["Gromyshkov Aleksandr",17]
["Kim Kirill",17]
["Lee Vitaliy",17]
["Ligay Maksim",17]
["Orlov Roman",17]
["Varentsov Vladimir",17]
["Belyaeva Rimma",16]
["Biriukov Aleksandr",16]
["Davoyan Franchesko",16]
["Falkovsky Igor",16]
["Kasumov Timur",16]
["Kharlov Evgeniy",16]
["Mityaev Ruslan",16]
["Pugachev Andrey",16]
["Shabalin Denis",16]
["Siziev Mikhail",16]
["Zhavoronkov Sergey",16]
["Altynikov Roman",15]
["Antropov Akim",15]
["Bovaev Elvig",15]
["Cholokyan Andronik",15]
["Fedorenko Dmitriy",15]
["Golovin Dmitriy",15]
["Kashtanov Aleksey",15]
["Kiryliuk Kirill",15]
["Ksagorari Artem",15]
["Maslakov Mikhail",15]
["Pantiukhin Aleksandr",15]
["Pogosyan Vage",15]
["Rasulov Arif",15]
["Romanyuk Yana",15]
["Savitskiy Stanislav",15]
["Serdiukov Dmitriy",15]
["Shkolnik Evgeniy",15]
["Zhiv Grigoriy",15]
["Abramenkov Sergey",14]
["Agabaev Arslan",14]
["Akulov Dmitriy",14]
["Azhmaganbetov Timur",14]
["Bartysh Bogdan",14]
["Bayandina Yulia",14]
["Danilov Konstantin",14]
["Fedorov Anton",14]
["Galaktionov Aleksey",14]
["Grinko Andrey",14]
["Kazaryan Genry",14]
["Kovalevskiy Dmitriy",14]
["Krasilnikov Sergey",14]
["Malyshev Denis",14]
["Metelitsa Vyacheslav",14]
["Mikhaylov Artur",14]
["Naumov Vladislav",14]
["Semenikhin Aleksey",14]
["Shutkin Leonid",14]
["Trubitsyn Andrey",14]
["Utin Aleksey",14]
["Vakhrameev Oleg",14]
["Zapuskalov Stanislav",14]
["Aratsev Daniil",13]
["Davydov Dmitriy",13]
["Esaulov Vladislav",13]
["Fu Mikhail",13]
["Kulakov Aleksey",13]
["Levin Aleksandr",13]
["Mustafin Ilmar",13]
["Nechaev Ivan",13]
["Nekrasov Sergey",13]
["Nikiforov Anton",13]
["Ovodov Aleksandr",13]
["Sabaev Konstantin",13]
["Vartikyan Artur",13]
["Yurlov Stanislav",13]
["Zakirov Zhevdet",13]
["Arsenenko Denis",12]
["Avdunin Kirill",12]
["Ibragimov Artur",12]
["Klyzhko Ilya",12]
["Kolotyuk Ksenia",12]
["Kovalev Mark",12]
["Mukhametzyanov Marsel",12]
["Polosmak Natalia",12]
["Potapov Aleksandr",12]
["Rogov Ilya",12]
["Rybin Andrey",12]
["Sergeev Artem",12]
["Shalaumov Oleg",12]
["Shumeyko Dmitriy",12]
["Tsoroev Ibragim",12]
["Udachin Sergey",12]
["Zhyharau Uladzimir",12]
["Afanasyev Aleksey",11]
["Afanasyev Igor",11]
["Agasarov Roman",11]
["Antokhin Aleksey",11]
["Fomenko Grigoriy",11]
["Gordeev Sergey",11]
["Grenko Andrey",11]
["Kalpenskiy Sergey",11]
["Kernozik Pavel",11]
["Khaveev Sergey",11]
["Koryakin Vitaliy",11]
["Kovalev Mikhail",11]
["Malis Boris",11]
["Mishin Stepan",11]
["Nikolaev Anatoliy",11]
["Perelygin Sergey",11]
["Piliuganova Svetlana",11]
["Pochinok Roman",11]
["Prigarnyi Aleksandr",11]
["Pripadchev Aleksey",11]
["Rozanov Sergei",11]
["Suvorov Yuriy",11]
["Tatarkin Sergey",11]
["Teselkin Aleksandr",11]
["Anisimov Aleksey",10]
["Badrutdinov Ruslan",10]
["Egorov Nikita",10]
["Gavrilov Aleksandr",10]
["Gayvorontseva Oksana",10]
["Goncharov Ruslan",10]
["Khavin Konstantin",10]
["Khokhlov Sergey",10]
["Korolev Ruslan",10]
["Kozlov Aleksey",10]
["Kuzin Valeriy",10]
["Mikhaylov Maksim",10]
["Nekrasov Maksim",10]
["Nekrasova Anna",10]
["Pollenskiy Dmitriy",10]
["Polosmak Maksim",10]
["Prizvan Arkadiy",10]
["Rakovich Ivan",10]
["Rudakova Sofia",10]
["Rudkovskiy Ilya",10]
["Savchenko Andrey",10]
["Sayapina Natalya",10]
["Shevchenko Ekaterina",10]
["Sokolov Aleksey",10]
["Sotov Andrey ",10]
["Usmanov Salim",10]
["Vlasov Aleksey",10]
["Andreev Dmitriy",9]
["Bakhta Stanislav",9]
["Bashkirov Danila",9]
["Eremin Dmitriy",9]
["Galiullin Ruslan",9]
["Gluzdovskaya Yuliya",9]
["Goldberg Leonid",9]
["Ichiro Tokugawa",9]
["Ignatyev Aleksey",9]
["Khan Aleksandr",9]
["Kosarev Viktor",9]
["Krasnov Dmitriy",9]
["Krutskikh Roman",9]
["Lebedev Denis",9]
["Meshkov Pavel",9]
["Osharov Aleksandr",9]
["Otkosov Evgeniy",9]
["Pollenskiy Evgeniy",9]
["Ro Gleb",9]
["Torbin Mikhail",9]
["Voropaev Anatoliy",9]
["Yarmoshchuk Sergey",9]
["Zotov Aleksey",9]
["Abishev Roman",8]
["Avanesian Vazgen",8]
["Berlin Sergey",8]
["Bolbas Viktor",8]
["Churikov Mikhail",8]
["Ershov Dmitriy",8]
["Esipov Igor",8]
["Grigorash Grigoriy",8]
["Kirichenko Vladislav",8]
["Klenin Georgiy",8]
["Kovalenko Aleksey",8]
["Lifshits Aleksandr",8]
["Matveev Georgiy",8]
["Panfilov Iliya",8]
["Romanovich Artem ",8]
["Shafigullin Salavat",8]
["Shaykov Irshat",8]
["Sugrobov Mikhail",8]
["Tabolin Aleksandr",8]
["Tambovtsev Evgeniy",8]
["Tsyganov Aleksey",8]
["Vasiliev Anatoliy",8]
["Volkov Andrey",8]
["Adamovich Aleksey",7]
["Aglyamov Radik",7]
["Ayupov Artur",7]
["Beliy Aleksandr",7]
["Belousov Andrey",7]
["Berg Daria ",7]
["Bolev Sergey",7]
["Boytler Kirill",7]
["Budenchuk Vladimir",7]
["Bystrov Maksim",7]
["Chashchin Igor",7]
["Dubnov Igor",7]
["Evdokimov Vitaliy",7]
["Fadeev Vladimir",7]
["Fedorov Roman",7]
["Gashkov Mikhail",7]
["Gaydukov Aleksandr",7]
["Generalova Anastasiya",7]
["Kosko Stanislav",7]
["Kudryashov Roman",7]
["Lebedeva Svetlana ",7]
["Markova Elizaveta",7]
["Mikhalin Nikita",7]
["Mgoyan Artur",7]
["Podivilov Dmitriy",7]
["Popov Anton",7]
["Romanov Aleksandr",7]
["Romanov Maksim",7]
["Rozinov Aleksandr",7]
["Satinskaya Viktoria",7]
["Serbun Anton",7]
["Shcherbakov Roman",7]
["Spiridonov Aleksandr",7]
["Stamatin Artem",7]
["Suchkov Andrey",7]
["Syshchenko Stanislav",7]
["Vasechko Anton",7]
["Vitchenko Denis",7]
["Yakovleva Mariya",7]
["Yashkin Oleg",7]
["Yusupov Sherzod",7]
["Abramovas Aleksandras",6]
["Belyaev Artem",6]
["Berezovoy Aleksandr",6]
["Bukharov German",6]
["Chikislov Igor",6]
["Chumakov Sergey",6]
["Gilyazitdinov Vasil",6]
["Girfanov Marat",6]
["Gorbunov Mikhail",6]
["Ilin Kirill",6]
["Kalinin Stanislav",6]
["Khaimov John",6]
["Khizhnyak Aleksandr",6]
["Kolesnikov Nikolai",6]
["Kosarev Pavel",6]
["Kovalevskaya Irina",6]
["Kozhevnikova Lidiya",6]
["Kruchinin Ignat",6]
["Krupnov Sergey",6]
["Kureev Vadim",6]
["Kuznetsov Nikita",6]
["Lapitskiy Egor",6]
["Legezin Ilya",6]
["Loginov Konstantin",6]
["Medvedev Sergey",6]
["Metelskiy Artem",6]
["Moskatelnikov Vyacheslav",6]
["Mustafin Amir",6]
["Paimukhin Vladislav",6]
["Pilkevich Artem",6]
["Piven Artur",6]
["Pochuev Ivan",6]
["Ponomarenko Mikhail",6]
["Puraev Artemiy",6]
["Ryaboshapka Pavel",6]
["Sarymsakov Amir",6]
["Saulenas Arturas",6]
["Serov Pavel ",6]
["Sheverdin Kirill",6]
["Shurkhno Aleksey",6]
["Sidorenko Denis",6]
["Smakotin Evgeniy",6]
["Sobennikov Aleksey",6]
["Sudakova Anastasiya",6]
["Voronkin Leonid",6]
["Yarulin Aleksey",6]
["Zakharov Aleksey",6]
["Abaluev Anton",5]
["Abaluev Andrey",5]
["Adamovich Denis",5]
["Agafonov Aleksey",5]
["Akimov Dmitriy",5]
["Alieva Luana",5]
["Alzhanov Azamat",5]
["Ashimov Bauyrzhan",5]
["Avanesyan Artem",5]
["Belozertsev Valeriy",5]
["Berdyshev Evgeniy",5]
["Bezuglov Andrey",5]
["Borisov Aleksandr",5]
["Bulgakov Vladimir",5]
["Buyankina Marina",5]
["Cheltsov Anton",5]
["Chuvilin Denis",5]
["Fogel Evgeniy",5]
["Gadziev Murat",5]
["Gorlenko Yuriy",5]
["Grishin Aleksandr",5]
["Grudinskiy Anatoliy",5]
["Gubashkin Aleksey",5]
["Ilin Evgeniy",5]
["Ivanov Dmitriy",5]
["Kayurov Aleksandr",5]
["Khabibullina Alina",5]
["Khitrykh Ivan",5]
["Kirilyuk Yuriy",5]
["Koltsov Andrey",5]
["Kuznetsov Viktor",5]
["Lapin Ilya",5]
["Mikhaylova Olga",5]
["Nasonov Evgeniy",5]
["Pobedonostsev Maksim",5]
["Porchuk Igor",5]
["Pronin Aleksandr",5]
["Rzaev Adil",5]
["Seliverstov Sergey",5]
["Shirokikh Aleksey",5]
["Starodubov Vitaliy",5]
["Tsarev Ivan",5]
["Tsyganov Dmitriy",5]
["Tumanov Mikhail",5]
["Verobyan Oleg",5]
["Vikharev Andrey",5]
["Vorobyev Artem",5]
["Zamyatina Olga",5]
["Zaytsev Ruslan",5]
["Zverev Dmitriy",5]
["Andreev Vadim",4]
["Antonov Ivan",4]
["Avanesyan Valeriy",4]
["Baaziz Mario",4]
["Boretskiy Maksim",4]
["Bozhich Andrey",4]
["Buldakov Nikolay",4]
["Demin Evgeniy_1986",4]
["Demenkov Vladimir",4]
["Dubnov Yuriy",4]
["Emelyanov Aleksey",4]
["Fedorov Denis",4]
["Garanin Nikolay",4]
["Gavrilov Nikolay",4]
["Gololobov Maksim",4]
["Gorbunov Boris",4]
["Grigoryev Igor",4]
["Grigoryeva Oksana",4]
["Grishin Aleksey",4]
["Ilyin Evgeniy",4]
["Kalinin Maksim",4]
["Khaveev Sergey_2",4]
["Khramov Ivan",4]
["Khron Aleksandr",4]
["Kokorev Aleksandr",4]
["Kononykhin Mikhail",4]
["Kovalev Ivan",4]
["Kozhevnikov Dmitriy",4]
["Kozhevnikov Sergey",4]
["Krylov Nikolay",4]
["Kudzhaev Dzhamaldin",4]
["Kukhalskiy Viktor",4]
["Kuliev Rustam",4]
["Kuldyaykin Ivan",4]
["Lebedev Vadim",4]
["Levin Aleksey",4]
["Matulevichyus Mikhail",4]
["Nasiradinov Mukhtar",4]
["Naumychev Maksim",4]
["Nefedov Ilya",4]
["Ovcharenko Pavel",4]
["Pogosov Arsen",4]
["Pogosov Arut",4]
["Polnarev Konstantin",4]
["Ponomarev Dmitriy",4]
["Potysyev Danil",4]
["Proskurin Oleg",4]
["Pushik Sergey",4]
["Ralko Pavel",4]
["Rasputin Vasiliy",4]
["Razumov Oleg",4]
["Rybakov Aleksandr",4]
["Sadov Pavel",4]
["Sergeev Oleg",4]
["Sevumyan Albert",4]
["Shakhnazarov Igor",4]
["Shakirov Sergey",4]
["Shishkin Aleksandr",4]
["Shishov Evgeniy",4]
["Shulgin Andrei",4]
["Skorokhod Kirill",4]
["Skryabin Aleksandr",4]
["Titenski Denis",4]
["Uspanov Renat",4]
["Vasiliev Evgeniy",4]
["Volkov Dmitriy",4]
["Vovnenko Filipp",4]
["Vysotskiy Petr",4]
["Yakshin Pavel",4]
["Yarulina Alina",4]
["Yurkov Aleksandr",4]
["Zaborskii Andrei",4]
["Zakharov Yuriy",4]
["Zanozin Pavel",4]
["Zaytsev Evgeniy",4]
["Ageeva Anastasiya",3]
["Alekseev Igor",3]
["Altukhov Igor",3]
["Artemenko Artem",3]
["Balobanov Konstantin",3]
["Bondarev Aleksandr",3]
["Borov Anzor",3]
["Chershnev Sergey",3]
["Chernyi Roman",3]
["Demb Valentin",3]
["Demin Dmitriy",3]
["Devyatkina Olga",3]
["Doronin Maksim",3]
["Dorozhkin Sergey",3]
["Drozd Anastasiya",3]
["Edilbekov Arseniy",3]
["Efimov Fedor",3]
["Erokhin Andrey",3]
["Fedorova Yuliya",3]
["Fedorov Yuriy",3]
["Fedotov Anton",3]
["Gilerson Yakov",3]
["Iskusnykh Denis",3]
["Ivanov Evgeniy",3]
["Kalashnikov Ilya",3]
["Kalish Aleksandr",3]
["Kashapova Enzhe",3]
["Kashchenko Vladislav",3]
["Khasanova Ilmira",3]
["Kolomiets Andrey",3]
["Kolomiets Konstantin",3]
["Kolyaskin Maksim",3]
["Korotkiy Denis",3]
["Kostikin Roman",3]
["Lavrov Andrey",3]
["Lazarev Roman",3]
["Lepeshkin Oleg",3]
["Levchenko Sergey",3]
["Ma Zhiyuan",3]
["Mamedgasanov Bunyad",3]
["Martoyan Karen",3]
["Merkulova Sofya",3]
["Meshkova Marina",3]
["Mikhalchuk Nikolay",3]
["Nikitin Eduard",3]
["Nosov Igor",3]
["Novikova Ekaterina",3]
["Ogannisyan Artur",3]
["Osadchiy Andrey",3]
["Palenov Iliya",3]
["Panfilov Dmitriy",3]
["Panteleev Andrey",3]
["Papeka Ihar",3]
["Pivovarov Anton",3]
["Rybakova Alina",3]
["Savelyev Nikita",3]
["Shcherbakov Maksim",3]
["Sidorin Sergey",3]
["Sivkov Nikolay",3]
["Sorokin Andrey",3]
["Subbotin Vyacheslav",3]
["Tarapkin Maksim",3]
["Troyanovskiy Viktor",3]
["Tsybulskaya Anastasiya",3]
["Uspanov Danat",3]
["Vagin Stanislav",3]
["Yanson Ivan",3]
["Yasnogorodskiy Ilya",3]
["Yatsenko Mark",3]
["Zavarzin Denis",3]
["Zolotarev  Artem",3]
["Abramov Aleksandr",2]
["Alikulov Artem",2]
["Antufyev Andrey",2]
["Ashimov Bauyrzhan",2]
["Aseeva Vera",2]
["Ataksheev Danila",2]
["Babiy Diana",2]
["Bakhrov Konstantin",2]
["Baturevich Mikhail",2]
["Bedareva Ksenia",2]
["Bolbas Viktor_2",2]
["Botvinnik Igor",2]
["Chistyakov Konstantin",2]
["Danilushkin Aleksey",2]
["Dosychev Kirill",2]
["Dubarev Andrey",2]
["Elin Denis",2]
["Evseev Aleksey",2]
["Flegontov Maksim",2]
["Galeev Gennadiy",2]
["Gaprindashvili Roman",2]
["Gayzhutis Igor",2]
["Gorshkova Alina",2]
["Grigorenko Roman",2]
["Gruzd Viktor",2]
["Halgaeva Ninel",2]
["Ivanov Andrey",2]
["Ivanov Evgeniy",2]
["Kalugin Mikhail",2]
["Karlov Vsevolod",2]
["Karpovich Kirill",2]
["Karyakin Dmitriy",2]
["Kashirtsev Ilya",2]
["Kharkov Ivan",2]
["Kiselev Vladislav",2]
["Klyashtorniy Artem",2]
["Kochergin Igor",2]
["Koptev Pavel",2]
["Korchagina Evgeniya",2]
["Korzh Artem",2]
["Kozhevnikov Grigoriy",2]
["Kozhevnikov Kirill",2]
["Krasikov Artur",2]
["Kurepchikov Rodion",2]
["Kurvachev Maksim ",2]
["Lavritov Anton",2]
["Lylina Angelina",2]
["Malishevskiy Vladimir",2]
["Manukyan Gagik",2]
["Marenkov Igor",2]
["Matananov Vadim ",2]
["Matson Denis",2]
["Miftyagdinov Damir",2]
["Melnik Petr",2]
["Mishin Aleksey",2]
["Morozov Konstantin",2]
["Mudritskaya Elena",2]
["Mustafin Roman",2]
["Nalimov Ilya",2]
["Nikitin Pavel",2]
["Nolde Sergey",2]
["Novik Evgeniy",2]
["Nurulina Elena",2]
["Obukhov Yuriy",2]
["Padzialinski Pavel",2]
["Permyakov Iliya",2]
["Potapov Aleksey",2]
["Prent Natalya",2]
["Rakhov Dmitriy",2]
["Rebrikova Ekaterina",2]
["Sakhnevich Vadim",2]
["Samoylova Irina",2]
["Savchenkov Konstantin",2]
["Savelyeva Ekaterina",2]
["Schetkin Kirill",2]
["Semenov Anatoliy",2]
["Semenyachenko Roman",2]
["Shchepelev Maksim",2]
["Shemyakin Fedor",2]
["Shopin Ruslan ",2]
["Solovyev Dmitriy",2]
["Stoponkus Richardas",2]
["Sukhoverkhov Vitaliy",2]
["Surin Gleb",2]
["Tarasov Roman",2]
["Tarasov Sergey",2]
["Terentyev Sergey",2]
["Terentyeva Alina",2]
["Turchaninov Nikita",2]
["Tyulyandin Sergey",2]
["Ulanskaya Anna",2]
["Uruzov Eduard",2]
["Uskov Yuriy",2]
["Vagina Vera",2]
["Verbitskiy Sergey",2]
["Yakushenko Maksim",2]
["Zakhardyaev Maksim",2]
["Zaynutdinov Ramis",2]
["Zharneev Samat",2]
["Zhiltsov Evgeniy",2]
["Abramov Roman",1]
["Agaev Emil",1]
["Aistov Maksim",1]
["Alborov Roman",1]
["Alekseeva Anna",1]
["Aleynik Konstantin",1]
["Alymov Daniil",1]
["Andrianovskaya Anna",1]
["Antipova Erika",1]
["Aristov Aleksey",1]
["Arkhipova Elizaveta",1]
["Arshin Mikhail",1]
["Bagritsevich Evgeniy",1]
["Baryshnikov Roman",1]
["Bedzhanyan Alla",1]
["Blazhchishyn Stanislav",1]
["Boeva Anastasiya",1]
["Bogdanovskiy Aleksandr",1]
["Bolshakova Olesya",1]
["Bondar Ilya",1]
["Bondarchuk Aleksandr",1]
["Boyko Aleksey",1]
["Budarina Tatyana",1]
["Chelpanov Aleksey",1]
["Chemeris Viktor",1]
["Chepkasov Dmitriy",1]
["Cherkasov Grigoriy",1]
["Deniskina Victoriya",1]
["Deripalko Mariya",1]
["Dosikov Ilyaz",1]
["Dziuba Sergey",1]
["Egorov Vladimir",1]
["Eliseev Konstantin",1]
["Esaulova Diana",1]
["Evrova Milana",1]
["Fedin Dmitriy",1]
["Filimonov Filipp",1]
["Firsova Elena",1]
["Frivlik Aleksandr",1]
["Garagulia Anton",1]
["Gazarov Tovmas",1]
["Gladkiy Sergey",1]
["Gorbachev Mikhail",1]
["Gordeeva Darya",1]
["Gordienko Andrey",1]
["Gorshkova Anastasiya",1]
["Grachev Grigoriy",1]
["Grigoryan Mels",1]
["Grigoryeva Liliya",1]
["Grinkiv Andrey",1]
["Ibragimov Abdul",1]
["Ishmetov Vadim",1]
["Ivashchenko Mariya",1]
["Izumova Anastasiya",1]
["Kadirov Aleksey",1]
["Karyaeva Anastasiya",1]
["Katsuk Vasiliy",1]
["Kel Ivan",1]
["Khanin Phillip",1]
["Khelyal Semir",1]
["Khomchuk Ekaterina",1]
["Khomenko Dmitriy",1]
["Khrushchev Danil",1]
["Kiperband Igor",1]
["Kitaeva Ksenia",1]
["Kochanov Averkiy",1]
["Komarov Aleksey",1]
["Kostin Mikhail",1]
["Kostousov Maksim",1]
["Kovalenko Aleksandr",1]
["Kovalenko Maksim",1]
["Kozhukhov Kirill",1]
["Krokhin Sergey",1]
["Kulbyakina Tatyana",1]
["Kushichev Sergey",1]
["Leonov Vladimir",1]
["Lepikov Stanislav",1]
["Limanskaya Mariya",1]
["Maksimova Irina",1]
["Malyshev Ruslan",1]
["Mamro Konstantin",1]
["Manucharov Grigoriy",1]
["Mardonov Mukhamadzhon",1]
["Marinina Eseniya",1]
["Martirosyan Armen",1]
["Martirosyan Gurgen",1]
["Maslyanov Nikolay",1]
["Matchenya Aleksey",1]
["Matveev Stanislav",1]
["Mikheev Stepan",1]
["Minduvaeva Valentina",1]
["Mishakov Stanislav",1]
["Mgoyan Alik",1]
["Mogilevskiy Vladislav",1]
["Myagkov Aleksey",1]
["Nakonechniy Pavel",1]
["Nesterenko Maksim",1]
["Nevolin Aleksandr",1]
["Nikolaev Aleksandr",1]
["Nosenko Igor",1]
["Novikov Artem",1]
["Obleukhov Kirill",1]
["Osipov Pavel",1]
["Osotskiy Aleksandr",1]
["Ovchinnikov Valeriy",1]
["Ovsyannikov Aleksey",1]
["Pak Aleksey",1]
["Panina Anastasiya",1]
["Pavlova Ksenya",1]
["Perepchik Ulyana",1]
["Pershin Vladislav",1]
["Petrov Aleksey",1]
["Petrov Aleksandr",1]
["Phrolov Roman",1]
["Plaksin Igor",1]
["Plyaskina Viktoriya",1]
["Podolskaya Raisa",1]
["Ponkratyev Sergey",1]
["Popeka Igor",1]
["Potapkin Artem",1]
["Potapkin Vladlen",1]
["Prokopovich Aleksandr",1]
["Prokopovich Marina",1]
["Pustovoy Aleksandr",1]
["Rasputin Valeriya",1]
["Rogozhnikova Marina",1]
["Romanova Ksenia",1]
["Romanovich Konstantin",1]
["Roshchanikov Aleksandr",1]
["Rybin Andrei",1]
["Sadova Elena",1]
["Samoylov Aleksey",1]
["Sapronov Aleksandr",1]
["Saulenas Mariya",1]
["Sergeev Evgeniy",1]
["Sergienko Evgeniy",1]
["Shaferman Maria",1]
["Shafigullin Ilnaz",1]
["Shakirova Olga",1]
["Shaposhnikova Anastasiya",1]
["Sharenkov Grigoriy",1]
["Sharipov Timofei",1]
["Shchebenkov Aleksandr",1]
["Shchednov Sergey",1]
["Shcheglov Gleb",1]
["Shcherban Lubov",1]
["Shebalkov Nikita",1]
["Shein Ilya",1]
["Shevelev Viktor",1]
["Shchigolev Aleksandr",1]
["Shipulin Sergey",1]
["Shopov Konstantin",1]
["Shostak Stanislav",1]
["Shuloyakov Ildar",1]
["Skvortsov Sergey",1]
["Sobianin Oleg",1]
["Sokolov Efim",1]
["Solonina Angelina",1]
["Sotnichenko Galina",1]
["Strelyaeva Ekaterina",1]
["Stukalov Andrey",1]
["Sukov Dmitriy",1]
["Tishchuk Marina",1]
["Toropov Pavel",1]
["Vasiukov Aleksey",1]
["Vinnitsa Vitaliy",1]
["Volnukhin Alesandr",1]
["Voytenko Dmitriy",1]
["Vzdykhanko Lev",1]
["Vyazmin Kirill",1]
["Yusupova Tatyana",1]
["Zhukov Ivan",1]
["Zhuravlev Ignat",1]
["Zhuravlev Aleksandr",1]
["Zhuravleva Natalya",1]